[Event "20th Heraklion IT Open 2017"]
[Site "Heraklion"]
[Date "2017.04.19"]
[Round "4"]
[White "Mamoulakis, Eleftherios"]
[Black "Moshovakis, Aggelos"]
[Result "1/2-1/2"]
[ECO "A06"]
[WhiteElo "2117"]
[BlackElo "2030"]
[Annotator "NA"]
[PlyCount "122"]
[EventDate "2017.??.??"]
[EventType "swiss"]
[EventCountry "GRE"]
[SourceTitle "playchess.com"]
[Source "ChessBase"]
[SourceQuality "1"]
[TimeControl "5400+30"]

1. e4 {[%emt 0:00:00]} e6 {[%emt 0:00:02]} 2. d4 {[%emt 0:00:00]} d5 {[%emt 0:00:02]} 3. Nc3 {[%emt 0:00:00]} Nf6 {[%emt 0:00:04]} 4. Bg5 {[%emt 0:00:00]} Bb4 {[%emt 0:00:04]} 5. exd5 {[%emt 0:00:08]} Qxd5 {[%emt 0:00:05]} 6. Nf3 {[%emt 0:08:53]} Nbd7 {[%emt 0:00:21] C12: French: Classical System: McCutcheon Variation} (6... Ne4 $5 7. Bd2 $8 Bxc3 8. bxc3 (8. Bxc3 Nxc3 9. bxc3 b6 $11) 8... c5 $11) (6... c5 7. Bxf6 Bxc3+ 8. bxc3 gxf6 9. Bd3 Bd7 10. O-O c4 11. Be2 Bc6 12. Ne1 Nd7 13. a4 Rg8 14. Bf3 {½-½ (74) Christiansen,J (2432)-Sebenik,M (2534) Lienz 2017}) 7. Bd3 {[%emt 0:03:12]} Ne4 {[%emt 0:00:05]} 8. Bd2 {[%emt 0:01:50]} Bxc3 $1 {[%emt 0:00:05]} 9. bxc3 {[%emt 0:00:28]} Nxd2 {[%emt 0:00:05]} 10. Qxd2 {[%emt 0:00:11]} b6 $146 {[%emt 0:00:05]} (10... O-O 11. O-O Qa5 12. Qe3 c5 13. Rab1 Qxa2 14. Be4 cxd4 15. cxd4 Nf6 16. Bxb7 Bxb7 17. Rxb7 Qxc2 18. Rc1 Qa4 19. h3 Rad8 20. Rcc7 Rd7 {½-½ (20) Hoffmann,H (2280)-Wichmann,C (2215) Gruenheide 1996}) 11. c4 {[%emt 0:08:46]} Qh5 {[%emt 0:00:27]} 12. Qf4 {[%emt 0:10:50]} Bb7 {[%emt 0:25:48]} 13. Qxc7 {[%emt 0:06:43]} Bxf3 {[%emt 0:00:20]} 14. gxf3 {[%emt 0:00:06]} Qxf3 {[%emt 0:03:28]} 15. Rg1 {[%emt 0:00:11]} Ke7 {[%emt 0:01:57]} 16. c5 {[%emt 0:06:14]} bxc5 $1 {[%emt 0:06:58]} 17. dxc5 {[%emt 0:02:50]} Qd5 $1 {[%emt 0:13:46]} 18. Qd6+ {[%emt 0:21:23]} Qxd6 {[%emt 0:00:05]} 19. cxd6+ {[%emt 0:00:04]} Kf6 {[%emt 0:01:34]} 20. Bb5 {[%emt 0:01:11]} Rhd8 {[%emt 0:01:17]} 21. O-O-O {[%emt 0:00:28]} Rab8 {[%emt 0:03:48]} 22. a4 {[%emt 0:00:45]} Rb6 {[%emt 0:08:54]} 23. Rg3 {[%emt 0:08:13]} Ne5 {[%emt 0:04:01]} 24. Rd4 {[%emt 0:06:37]} Rbxd6 {[%emt 0:02:20]} 25. Rf4+ {[%emt 0:00:20]} Ke7 {[%emt 0:00:07]} 26. Rxg7 {[%emt 0:00:11]} Rd1+ {[%emt 0:01:11]} 27. Kb2 {[%emt 0:00:04]} Rb8 {[%emt 0:00:43]} 28. Kc3 {[%emt 0:04:29]} Rc8+ {[%emt 0:00:44]} 29. Kb3 {[%emt 0:00:50]} Rb1+ {[%emt 0:01:03]} 30. Ka2 {[%emt 0:00:07]} Rh1 {[%emt 0:02:21]} 31. Rxh7 {[%emt 0:00:56]} Rxc2+ {[%emt 0:00:16]} 32. Kb3 {[%emt 0:00:05]} Rhc1 {[%emt 0:02:34]} 33. Rh5 {[%emt 0:01:47]} Rc3+ {[%emt 0:03:31]} 34. Kb4 {[%emt 0:01:30]} Nc6+ {[%emt 0:00:49]} 35. Bxc6 {[%emt 0:00:11]} Rxc6 {[%emt 0:00:02]} 36. Rb5 {[%emt 0:01:16]} Rb1+ {[%emt 0:04:01]} 37. Ka5 {[%emt 0:00:47]} Rxb5+ {[%emt 0:05:24]} 38. axb5 {[%emt 0:00:17]} Rc2 {[%emt 0:00:06]} 39. h4 {[%emt 0:01:06]} f5 {[%emt 0:01:31]} 40. h5 {[%emt 0:03:26]} Kf6 {[%emt 0:01:46]} 41. h6 {[%emt 0:00:19]} Kg6 {[%emt 0:01:51]} 42. Rh4 {[%emt 0:00:05]} Kh7 {[%emt 0:01:43]} 43. f4 {[%emt 0:01:34]} Rc4 {[%emt 0:01:35]} 44. Ka6 {[%emt 0:00:31]} Ra4+ {[%emt 0:00:06]} 45. Kb7 {[%emt 0:00:05] [#]} e5 $1 {[%emt 0:02:44]} 46. Rh5 {[%emt 0:00:36]} Rxf4 {[%emt 0:00:09]} ({And not} 46... exf4 47. Kc6 $11) 47. Kxa7 {[%emt 0:00:05]} e4 {[%emt 0:00:37]} 48. b6 {[%emt 0:02:16]} e3 {[%emt 0:00:41]} 49. b7 {[%emt 0:01:24]} e2 {[%emt 0:00:42]} (49... Ra4+ $142 50. Kb8 e2) 50. Rh1 {[%emt 0:00:38]} Ra4+ {[%emt 0:00:53]} 51. Kb6 {[%emt 0:00:05]} Rb4+ {[%emt 0:00:10]} 52. Kc7 {[%emt 0:00:05]} f4 {[%emt 0:00:20]} 53. b8=Q {[%emt 0:00:06]} Rxb8 {[%emt 0:00:05]} 54. Kxb8 {[%emt 0:00:03]} f3 {[%emt 0:00:06]} 55. Re1 {[%emt 0:00:37]} Kxh6 {[%emt 0:00:06]} 56. Kc7 {[%emt 0:00:03]} Kg5 {[%emt 0:00:05]} 57. Kd6 {[%emt 0:00:09]} Kf4 {[%emt 0:00:04]} 58. Kd5 {[%emt 0:00:12]} Ke3 {[%emt 0:00:05]} 59. Rh1 {[%emt 0:00:10]} f2 {[%emt 0:00:17]} 60. Rh3+ {[%emt 0:00:37]} Kd2 {[%emt 0:00:10]} 61. Kd4 {[%emt 0:00:24]} e1=Q {[%emt 0:00:11]} 1/2-1/2

[Event "20th Heraklion IT Open 2017"]
[Site "Heraklion"]
[Date "2017.04.19"]
[Round "4"]
[White "Hristodoulaki, Antonia"]
[Black "Predeftakis, Georgios"]
[Result "1-0"]
[ECO "B53"]
[WhiteElo "1994"]
[BlackElo "1688"]
[Annotator "NA RC"]
[PlyCount "89"]
[EventDate "2017.??.??"]
[EventType "swiss"]
[EventCountry "GRE"]
[SourceTitle "playchess.com"]
[Source "ChessBase"]
[SourceQuality "1"]
[TimeControl "40/5400+30:1800+30"]

{[%evp 8,82,37,18,22,33,16,0,0,0,17,32767,43,33,31,32767,32767,32767,47,32767,32767,15,32767,-8,66,32767,32767,32767,65,32767,-29,-37,32767,32767,0,-111,-106,-141,0,-146,94,66,66,68,48,68,86,79,86,83,308,0,18,0,310,314,343,68,88,0,0,0,275,183,1068,1285,1323,777,400,795,756,831,968,1024,1120,1046,1058]} 1. e4 {[%emt 0:08:47]} c5 {[%emt 0:00:06]} 2. Nf3 {[%emt 0:00:06]} d6 {[%emt 0:00:06]} 3. d4 {[%emt 0:00:04]} cxd4 {[%emt 0:00:04]} 4. Qxd4 {[%emt 0:00:05]} Nc6 {[%emt 0:02:08]} 5. Bb5 {[%emt 0:01:23]} Bd7 {[%emt 0:02:14]} 6. Qe3 {[%emt 0:01:02] LiveBook: 3 Games B53: Sicilian: 2...d6: Lines with Qxd4} (6. Qd3 Nf6 7. O-O g6 8. c4 Bg7 9. Nc3 O-O 10. h3 a6 11. Bxc6 Bxc6 12. Nd4 Nd7 13. Be3 Rc8 14. Rac1 Nc5 {½-½ (35) Malakhov,V (2713)-Li,C (2720) Doha 2016}) 6... g6 {[%emt 0:17:49]} 7. c4 $146 {[%emt 0:02:09]} (7. O-O Bg7 8. c4 Nf6 9. Nc3 O-O 10. h3 a6 11. Ba4 Rc8 12. Bd2 Be6 13. Bxc6 bxc6 {½-½ (31) Kindsvogel,R (2279)-Sulzbach,S (2195) Baden 2013}) 7... Bg7 {[%emt 0:00:26]} 8. Nc3 {[%emt 0:01:51]} Nb4 {[%emt 0:08:00]} 9. Qd2 {[%emt 0:15:06]} a6 {[%emt 0:10:23]} 10. Bxd7+ {[%emt 0:01:24]} Qxd7 {[%emt 0:00:07]} 11. O-O {[%emt 0:07:05]} Nf6 {[%emt 0:02:30]} 12. Rd1 {[%emt 0:06:58]} Qe6 {[%emt 0:07:53]} 13. Qe2 {[%emt 0:24:13]} Rc8 {[%emt 0:09:25]} 14. a3 {[%emt 0:02:39]} Nc6 {[%emt 0:00:09]} 15. Ng5 {[%emt 0:05:08]} Qe5 {[%emt 0:00:11]} ({Black should try} 15... Qg4 $11) 16. f4 {[%emt 0:01:31]} Qa5 {[%emt 0:00:12]} 17. Be3 {[%emt 0:05:43]} h6 {[%emt 0:02:54]} 18. Nh3 {[%emt 0:00:15]} Qh5 $1 {[%emt 0:01:56]} 19. Qc2 {[%emt 0:04:50]} Ng4 {[%emt 0:05:12]} 20. Bb6 {[%emt 0:00:39]} g5 {[%emt 0:06:39]} (20... O-O $15) 21. e5 {[%emt 0:04:17]} (21. Ne2 $1 $11) 21... dxe5 {[%emt 0:01:52]} 22. f5 {[%emt 0:00:01] [#]} Nd4 {[%emt 0:01:09]} ({Black should play} 22... O-O $1 $17 {White must now prevent ...Nd4.} 23. Rd7 e4) 23. Qe4 {[%emt 0:01:04]} Rc6 $2 {[%emt 0:04:02]} ({And not} 23... Rxc4 24. Nd5 (24. Qd5 Rc8 25. Qxb7 O-O $19) 24... O-O 25. Qd3 $14 (25. b3 Rc6 26. Nxe7+ Kh8 27. Nxc6 bxc6 $14)) (23... O-O $17 {stays on course.} 24. Nd5 Rfe8) 24. Bxd4 {[%emt 0:03:31]} exd4 {[%emt 0:00:10]} 25. Nd5 {[%emt 0:00:12]} Be5 {[%emt 0:06:18]} 26. Rxd4 {[%emt 0:00:19]} Bxd4+ {[%emt 0:00:12]} ({Don't take} 26... Bxh2+ $2 27. Kh1 Kf8 28. Qxg4 $18) 27. Qxd4 {[%emt 0:00:02]} f6 {[%emt 0:03:14] [#]} 28. Qa7 $1 {[%emt 0:02:11]} Rd6 $2 {[%emt 0:05:54]} (28... Kf8 $16) 29. Qb8+ $2 {[%emt 0:01:13]} Rd8 {[%emt 0:00:08]} 30. Qxb7 {[%emt 0:00:11]} Rd7 $2 {[%emt 0:00:44]} (30... O-O $11) 31. Qc8+ {[%emt 0:00:29]} ({Less strong is} 31. Qxa6 Kf8 $16) 31... Rd8 {[%emt 0:00:10] [#]} 32. Qxa6 $2 {[%emt 0:00:45]} ({White must play} 32. Qe6 $1 $18 Qf7 33. Nc7+ (33. Qxa6 O-O $11) 33... Kf8 34. Qe2 (34. Qxa6 Kg8 $16)) 32... Ne5 $14 {[%emt 0:00:24]} 33. Re1 {[%emt 0:00:41]} ({White should play} 33. Nf2 $14 O-O 34. Nxe7+ Kg7 35. Nd5) 33... Qh4 {[%emt 0:00:55]} 34. Nf2 {[%emt 0:00:32]} Qd4 $2 {[%emt 0:01:06]} (34... Qxc4 $11 35. Qxc4 Nxc4 36. Rxe7+ (36. Nxe7 Kf7 37. Nc6 Rd7 $17) 36... Kf8) 35. Nxf6+ {[%emt 0:00:29]} exf6 $2 {[%emt 0:00:47]} (35... Kf8) 36. Qxf6 {[%emt 0:00:03]} Kd7 {[%emt 0:01:19]} 37. Rd1 {[%emt 0:00:54]} ({Less strong is} 37. Qxe5 Qxe5 38. Rxe5 Rhe8 39. Rxe8 Rxe8 $16) 37... Qxd1+ {[%emt 0:00:16]} 38. Nxd1 {[%emt 0:00:01]} Rhe8 {[%emt 0:01:09]} 39. Nc3 {[%emt 0:00:39]} h5 {[%emt 0:01:11]} 40. h3 {[%emt 0:00:00]} g4 {[%emt 0:00:24]} 41. Nb5 {[%emt 0:02:32]} Re7 $18 {[%emt 0:01:12]} 42. Qd6+ {[%emt 0:20:11]} Ke8 {[%emt 0:00:02]} 43. f6 {[%emt 0:01:22]} Rxd6 {[%emt 0:01:12]} 44. Nxd6+ {[%emt 0:00:10]} Kd7 {[%emt 0:00:09]} 45. fxe7 {[%emt 0:00:04]} 1-0

[Event "20th Heraklion IT Open 2017"]
[Site "Heraklion"]
[Date "2017.04.19"]
[Round "4"]
[White "Serpetsidakis, Nikolaos"]
[Black "Sourgkounis, Angelos"]
[Result "1-0"]
[ECO "A46"]
[WhiteElo "1994"]
[BlackElo "1960"]
[Annotator "NA RC"]
[PlyCount "120"]
[EventDate "2017.??.??"]
[EventType "swiss"]
[EventCountry "GRE"]
[SourceTitle "playchess.com"]
[Source "ChessBase"]
[SourceQuality "1"]
[TimeControl "40/5400+30:1800+30"]

1. e4 {[%emt 0:01:07]} d6 {[%emt 0:00:11]} 2. d4 {[%emt 0:02:03]} Nd7 {[%emt 0:00:10]} 3. Nf3 {[%emt 0:05:18]} c6 {[%emt 0:00:09]} 4. c4 {[%emt 0:03:00]} e5 {[%emt 0:02:23]} 5. Nc3 {[%emt 0:00:05]} Ngf6 {[%emt 0:01:21]} 6. Be2 {[%emt 0:02:04]} Be7 {[%emt 0:00:09]} 7. O-O {[%emt 0:00:20]} O-O {[%emt 0:00:34]} 8. Re1 {[%emt 0:00:56]} Re8 {[%emt 0:04:07]} 9. Bf1 {[%emt 0:01:33]} Qc7 {[%emt 0:00:51]} 10. Rb1 {[%emt 0:05:10]} a5 {[%emt 0:01:34]} 11. a3 {[%emt 0:01:56]} Nf8 {[%emt 0:05:27]} 12. h3 {[%emt 0:02:39]} Ng6 {[%emt 0:04:42]} 13. d5 {[%emt 0:06:30]} c5 {[%emt 0:06:20]} 14. Nh2 {[%emt 0:13:10]} Rf8 {[%emt 0:05:55]} 15. Bd3 {[%emt 0:04:02]} Bd7 {[%emt 0:02:09]} 16. b3 {[%emt 0:03:36]} Kh8 {[%emt 0:00:50]} 17. Nf1 {[%emt 0:01:16]} Nf4 {[%emt 0:04:42]} 18. Bxf4 {[%emt 0:19:32]} exf4 {[%emt 0:00:07]} 19. Be2 {[%emt 0:00:39]} Ng8 {[%emt 0:15:41]} 20. Bg4 {[%emt 0:01:28]} Be8 {[%emt 0:00:40]} 21. Qd2 {[%emt 0:05:04]} g5 {[%emt 0:02:45]} 22. Nh2 {[%emt 0:03:19]} Nh6 {[%emt 0:06:36]} 23. Nb5 {[%emt 0:00:34]} Qd8 {[%emt 0:04:41]} 24. Bh5 {[%emt 0:06:09]} Bd7 {[%emt 0:05:53]} 25. Rbd1 {[%emt 0:01:46]} f6 {[%emt 0:13:57]} 26. Qe2 {[%emt 0:01:44]} a4 {[%emt 0:01:45]} 27. b4 {[%emt 0:02:01]} cxb4 {[%emt 0:01:04]} 28. axb4 {[%emt 0:00:05]} Qb6 {[%emt 0:00:37]} 29. Nf3 {[%emt 0:02:50]} f5 {[%emt 0:05:01]} 30. e5 {[%emt 0:00:41]} dxe5 {[%emt 0:01:41]} 31. Nxe5 {[%emt 0:00:04]} Bxb5 {[%emt 0:00:18]} 32. cxb5 {[%emt 0:00:14]} Qd8 {[%emt 0:03:16]} 33. d6 {[%emt 0:03:24]} Bf6 {[%emt 0:00:01]} 34. Rd3 {[%emt 0:01:02]} a3 {[%emt 0:01:00]} 35. Qa2 {[%emt 0:00:06]} Qb6 {[%emt 0:00:51]} 36. Qd5 {[%emt 0:01:28]} a2 {[%emt 0:00:15]} 37. Ra1 {[%emt 0:00:03]} Rfd8 {[%emt 0:00:45]} 38. d7 {[%emt 0:00:17]} Qc7 {[%emt 0:00:23]} 39. Rxa2 {[%emt 0:01:18]} Rxa2 {[%emt 0:00:12]} 40. Qxa2 {[%emt 0:00:00]} Qxe5 {[%emt 0:00:35]} 41. Rd1 {[%emt 0:13:14]} g4 {[%emt 0:03:07]} 42. Be8 {[%emt 0:06:17]} gxh3 {[%emt 0:09:10]} 43. gxh3 {[%emt 0:00:04]} f3 {[%emt 0:01:00]} 44. Qd5 {[%emt 0:00:03]} Qxd5 {[%emt 0:10:32]} 45. Rxd5 {[%emt 0:00:06]} Be7 {[%emt 0:03:44]} 46. Bh5 {[%emt 0:10:23]} Bxb4 {[%emt 0:02:06]} 47. Bxf3 {[%emt 0:00:06]} b6 {[%emt 0:00:43]} 48. Rd3 {[%emt 0:02:30]} Bc5 {[%emt 0:00:46]} 49. Bc6 {[%emt 0:00:07]} Kg7 {[%emt 0:00:15]} 50. Kf1 {[%emt 0:01:48]} Ng8 {[%emt 0:00:25]} 51. Rg3+ {[%emt 0:01:43]} Kf6 {[%emt 0:00:20]} 52. Ke2 {[%emt 0:00:13]} Ke6 {[%emt 0:02:17]} 53. Rg7 {[%emt 0:00:50]} Nf6 {[%emt 0:00:06]} 54. Kf1 {[%emt 0:00:30]} Nxd7 {[%emt 0:01:29]} 55. Rxh7 {[%emt 0:00:05]} Nf6 {[%emt 0:00:17]} 56. Rh4 {[%emt 0:00:38]} Rd2 {[%emt 0:01:08]} 57. f3 {[%emt 0:00:05]} Nd5 {[%emt 0:00:33]} 58. Rh6+ {[%emt 0:01:09]} Ke5 {[%emt 0:00:10]} 59. Ke1 {[%emt 0:00:13]} Rh2 {[%emt 0:00:17]} 60. Bd7 {[%emt 0:00:39]} Ne3 {[%emt 0:00:32]} 1-0

[Event "20th Heraklion IT Open 2017"]
[Site "Heraklion"]
[Date "2017.04.19"]
[Round "4"]
[White "Maris, Ioannis"]
[Black "Vitsaxakis, Nikolaos"]
[Result "0-1"]
[ECO "C55"]
[WhiteElo "1967"]
[BlackElo "1726"]
[Annotator "NA"]
[PlyCount "80"]
[EventDate "2017.??.??"]
[EventType "swiss"]
[EventCountry "GRE"]
[SourceTitle "playchess.com"]
[Source "ChessBase"]
[SourceQuality "1"]
[TimeControl "40/5400+30:1800+30"]

1. e4 {[%emt 0:00:00]} e5 {[%emt 0:04:04]} 2. Nf3 {[%emt 0:00:00]} Nc6 {[%emt 0:00:05]} 3. Bc4 {[%emt 0:00:03]} Nf6 {[%emt 0:00:24]} 4. d3 {[%emt 0:01:00]} Be7 {[%emt 0:00:09]} 5. O-O {[%emt 0:01:22]} O-O {[%emt 0:01:17]} 6. c3 {[%emt 0:00:31]} d6 {[%emt 0:00:07]} 7. h3 {[%emt 0:04:30]} Na5 {[%emt 0:11:02]} 8. Bb5 {[%emt 0:00:06]} a6 {[%emt 0:00:06]} 9. Ba4 {[%emt 0:00:16]} b5 {[%emt 0:00:06]} 10. Bc2 {[%emt 0:00:12]} c5 {[%emt 0:00:06]} 11. Re1 {[%emt 0:02:33]} Nc6 {[%emt 0:01:41]} 12. Nbd2 {[%emt 0:04:19]} Re8 {[%emt 0:00:15]} 13. Nf1 {[%emt 0:00:53]} Bf8 {[%emt 0:03:55]} 14. a4 {[%emt 0:10:37]} Rb8 {[%emt 0:02:49]} 15. axb5 {[%emt 0:01:50]} axb5 {[%emt 0:00:50]} 16. d4 {[%emt 0:12:30]} b4 {[%emt 0:10:16]} 17. Ba4 {[%emt 0:01:03]} Bd7 {[%emt 0:01:43]} 18. dxc5 {[%emt 0:07:11]} dxc5 {[%emt 0:09:30]} 19. Bg5 {[%emt 0:00:46]} Be7 {[%emt 0:04:33]} 20. Bxc6 {[%emt 0:07:59]} Bxc6 {[%emt 0:00:04]} 21. Nxe5 {[%emt 0:00:16]} Bxe4 {[%emt 0:03:17]} 22. Bxf6 {[%emt 0:01:05]} Bxf6 {[%emt 0:00:51]} 23. Nd7 {[%emt 0:00:15]} bxc3 {[%emt 0:02:17]} 24. Nxf6+ {[%emt 0:11:07]} Qxf6 {[%emt 0:00:16]} 25. bxc3 {[%emt 0:00:10]} Qxc3 {[%emt 0:00:23]} 26. Qd6 {[%emt 0:03:54]} Qd4 {[%emt 0:09:22]} 27. Qc7 {[%emt 0:01:08]} Rb2 {[%emt 0:04:40]} 28. Ne3 {[%emt 0:00:47]} Qd2 {[%emt 0:02:27]} 29. Ng4 {[%emt 0:04:41]} Qb4 {[%emt 0:24:49]} 30. Re3 {[%emt 0:12:47]} h5 {[%emt 0:02:25]} 31. Ra7 {[%emt 0:03:48]} Rf8 {[%emt 0:00:43]} 32. Nh6+ {[%emt 0:07:03]} gxh6 {[%emt 0:00:22]} 33. Rg3+ {[%emt 0:00:11]} Kh7 {[%emt 0:01:22]} 34. Qe5 {[%emt 0:00:48]} Bg6 {[%emt 0:00:16]} 35. Rxg6 {[%emt 0:00:47]} Kxg6 {[%emt 0:00:09]} 36. Ra6+ {[%emt 0:00:22]} f6 {[%emt 0:01:10]} 37. Qg3+ {[%emt 0:00:30]} Kf5 {[%emt 0:00:24]} 38. Qf3+ {[%emt 0:00:39]} Qf4 {[%emt 0:00:31]} 39. g4+ {[%emt 0:00:09]} hxg4 {[%emt 0:00:39]} 40. hxg4+ {[%emt 0:00:00]} Ke5 0-1

[Event "20th Heraklion IT Open 2017"]
[Site "Heraklion"]
[Date "2017.04.19"]
[Round "4"]
[White "Lampadariou, Nikolaos"]
[Black "Stratigi, Evangelia"]
[Result "1-0"]
[ECO "D96"]
[WhiteElo "1948"]
[BlackElo "1662"]
[Annotator "NA RC"]
[PlyCount "131"]
[EventDate "2017.??.??"]
[EventType "swiss"]
[EventCountry "GRE"]
[SourceTitle "playchess.com"]
[Source "ChessBase"]
[SourceQuality "1"]
[TimeControl "40/5400+30:1800+30"]

{[%evp 9,131,29,32767,36,32767,28,32767,32767,48,51,62,62,49,21,32767,32767,25,32767,32767,32767,32767,32767,32767,32767,26,32767,32767,0,32767,32767,32767,32767,32767,56,48,32767,96,52,61,49,89,57,84,78,98,87,112,82,78,58,77,79,108,58,108,118,111,130,187,114,108,0,121,0,115,107,114,0,114,110,110,120,102,102,114,124,129,111,134,102,327,150,32767,32767,32767,191,186,161,139,134,135,102,147,95,133,80,103,97,77,78,94,80,86,78,217,82,89,69,185,201,195,210,267,282,397,545,5277,1306,29974,29979,29978,29980,29979,6087]} 1. Nf3 {[%emt 0:00:00]} Nf6 {[%emt 0:00:09]} 2. d4 {[%emt 0:00:38]} d5 {[%emt 0:00:09]} 3. c4 {[%emt 0:00:50]} c6 {[%emt 0:00:10]} 4. Nc3 {[%emt 0:00:18]} g6 {[%emt 0:00:41]} 5. Bf4 {[%emt 0:02:51]} Bg7 {[%emt 0:01:56]} 6. e3 {[%emt 0:03:17]} O-O {[%emt 0:00:50]} 7. h3 {[%emt 0:00:41] LiveBook: 189 Games} e6 {[%emt 0:09:06] D93: Grünfeld: 4 Nf3 Bg7 5 Bf4 0-0 6 e3} (7... c5 8. dxc5 Ne4 9. Rc1 Nd7 10. cxd5 Nxc3 11. bxc3 Nxc5 12. Be2 Qa5 13. O-O {½-½ (13) Bulski,K (2522)-Votava,J (2522) Czech Republic 2017}) 8. Be2 {[%emt 0:04:14]} Nbd7 {[%emt 0:05:24]} 9. O-O {[%emt 0:00:46]} Re8 {[%emt 0:02:03]} 10. Rc1 {[%emt 0:05:17]} b6 {[%emt 0:08:36]} 11. Ne5 {[%emt 0:13:55]} Bb7 {[%emt 0:01:49]} 12. cxd5 {[%emt 0:07:32]} exd5 {[%emt 0:01:29]} 13. Qa4 {[%emt 0:05:24]} Nxe5 {[%emt 0:04:40]} 14. Bxe5 {[%emt 0:01:31]} Nd7 {[%emt 0:06:18]} 15. Bg3 $146 {[%emt 0:02:25]} (15. Bxg7 Kxg7 {½-½ (51) Ferreira,O-Dienavorian Lacherian,M Tucuman 1971}) 15... a6 {[%emt 0:06:15]} 16. Bf3 {[%emt 0:04:52]} b5 {[%emt 0:03:17]} 17. Qc2 {[%emt 0:05:36]} Nb6 {[%emt 0:06:21]} 18. Nd1 {[%emt 0:05:10]} Bf8 {[%emt 0:03:51]} 19. b3 {[%emt 0:00:39]} Bd6 {[%emt 0:01:37]} 20. Bxd6 {[%emt 0:00:27]} Qxd6 {[%emt 0:00:08]} 21. Nb2 {[%emt 0:00:35]} Nd7 {[%emt 0:07:33]} 22. Nd3 {[%emt 0:00:56]} Rac8 {[%emt 0:03:50]} 23. Bg4 {[%emt 0:02:10]} f5 {[%emt 0:01:54]} 24. Bf3 {[%emt 0:00:05]} g5 {[%emt 0:06:26]} 25. g3 {[%emt 0:02:33]} Qg6 {[%emt 0:05:14]} 26. Qd1 {[%emt 0:03:48]} Qd6 {[%emt 0:03:01]} 27. Rc2 {[%emt 0:05:39]} Kh8 {[%emt 0:02:14]} 28. Bg2 {[%emt 0:00:40]} Qg6 {[%emt 0:00:50]} 29. Rc3 {[%emt 0:03:49]} Kg7 {[%emt 0:02:26]} 30. Bf3 {[%emt 0:03:17]} Qd6 {[%emt 0:00:33]} 31. Qd2 {[%emt 0:00:27]} h6 {[%emt 0:01:53]} 32. Rfc1 {[%emt 0:00:28]} Ba8 {[%emt 0:03:25]} 33. R3c2 {[%emt 0:00:24]} Re7 $1 $11 {[%emt 0:01:17]} (33... Bb7 $16 {keeps fighting.} 34. g4 fxg4 35. Bxg4 Rc7) 34. Bg2 {[%emt 0:03:35]} (34. Qb4 $18 Re6 35. g4) 34... Rce8 $1 {[%emt 0:00:46]} 35. Bf3 {[%emt 0:00:24]} Rf8 {[%emt 0:00:44]} 36. Bg2 {[%emt 0:01:59]} (36. a4 $16) 36... Rfe8 {[%emt 0:00:40]} 37. Nb4 {[%emt 0:04:59]} Nb8 {[%emt 0:00:14]} 38. Nd3 {[%emt 0:01:16]} (38. Bf3 $16) 38... Nd7 {[%emt 0:00:08]} 39. a4 {[%emt 0:00:30]} Bb7 {[%emt 0:00:29]} 40. axb5 {[%emt 0:00:00]} axb5 {[%emt 0:00:34]} 41. Ra1 {[%emt 0:06:16]} Ra8 {[%emt 0:10:03]} 42. Rxa8 {[%emt 0:02:29]} Bxa8 {[%emt 0:00:05]} 43. Ra2 {[%emt 0:00:16]} Bb7 {[%emt 0:01:17]} 44. Ra7 {[%emt 0:01:49]} Bc8 $2 {[%emt 0:01:12]} (44... Qb8 $16 45. Qa5 Kg8) 45. Qa5 {[%emt 0:01:00]} (45. Qb4 $18 Qxb4 46. Nxb4) 45... Nf6 {[%emt 0:02:27]} 46. Ne5 {[%emt 0:06:34]} Rxa7 {[%emt 0:00:56]} 47. Qxa7+ {[%emt 0:00:08]} Bd7 {[%emt 0:00:48]} 48. Qa8 {[%emt 0:05:13]} Qc7 {[%emt 0:02:04]} 49. Qa3 {[%emt 0:00:49]} Be8 {[%emt 0:01:30]} 50. Qc5 {[%emt 0:00:42]} Kg8 {[%emt 0:02:58]} 51. b4 {[%emt 0:00:57]} Kg7 {[%emt 0:02:43]} 52. f3 {[%emt 0:01:45]} Ng8 {[%emt 0:01:28]} 53. e4 {[%emt 0:01:08]} fxe4 {[%emt 0:03:51]} 54. fxe4 {[%emt 0:00:12]} dxe4 {[%emt 0:00:43]} 55. Bxe4 {[%emt 0:00:44]} Ne7 {[%emt 0:00:46]} 56. Kg2 {[%emt 0:02:57]} Qb7 {[%emt 0:01:35]} (56... Qd8 $16 57. Kh1 (57. Ng4 Nd5 $16) 57... Qc7) 57. h4 {[%emt 0:01:38]} (57. Ng4 $18 {Hoping for Qe5+.} Ng8 58. Nxh6 (58. Qe5+ Kf8 59. Nf6 Nxf6 60. Qxf6+ Kg8 61. Qxh6 Qe7 $18) 58... Kxh6 59. Qf8+ Qg7 60. Qxe8) 57... gxh4 {[%emt 0:00:31]} 58. gxh4 {[%emt 0:00:12]} Nd5 {[%emt 0:01:34]} ({Black should play} 58... Qc7 $14) 59. Bxd5 {[%emt 0:02:07]} cxd5 {[%emt 0:00:10]} 60. Kg3 {[%emt 0:02:08]} Kg8 {[%emt 0:01:30]} 61. Kf4 {[%emt 0:01:09]} h5 {[%emt 0:01:35]} (61... Kg7 {was called for.} 62. Qd6 Qc8) 62. Qd6 {[%emt 0:01:11]} Bf7 {[%emt 0:01:11]} 63. Qd8+ {[%emt 0:01:36]} (63. Qf6 $142 Be8 64. Qd8) 63... Kg7 {[%emt 0:00:17]} 64. Qg5+ {[%emt 0:00:20]} Kf8 {[%emt 0:00:18]} 65. Qf6 {[%emt 0:01:08]} Qc7 {[%emt 0:01:04]} 66. Qxf7+ {[%emt 0:00:16]} 1-0